[Event "Super United Croatia GCT Blitz 2022"]
[Site "Zagreb"]
[Date "2022.07.24"]
[Round "13"]
[White "Firouzja, Alireza"]
[Black "Vachier-Lagrave, Maxime"]
[Result "0-1"]
[ECO "A37"]
[WhiteElo "2793"]
[BlackElo "2760"]
[Annotator "TA"]
[PlyCount "96"]
[EventDate "2022.07.20"]
[EventType "tourn"]
[EventCountry "CRO"]
[SourceTitle "playchess.com"]
[Source "ChessBase"]
[SourceQuality "1"]
[TimeControl "300+2"]

{[%evp 11,96,0,0,0,4,-10,-4,-53,-30,-37,-44,-45,-44,-47,-11,-12,0,0,0,0,0,0,0,0,0,0,0,-17,-32,-37,-24,-31,0,5,19,8,168,164,163,152,296,100,112,43,56,18,18,27,27,27,24,23,29,-106,-85,-99,-99,-93,-89,-89,-91,-143,-88,-119,-119,-118,-119,-119,-77,-77,-78,-77,-77,-169,-69,-114,-69,-82,-82,-133,-8,-8,0,0,0,-29998,-29999]} 1. Nf3 {[%emt 0:00:01]} c5 {[%emt 0:00:02]} 2. c4 {[%emt 0:00:02]} Nc6 {[%emt 0:00:03]} 3. Nc3 {[%emt 0:00:04]} e5 {[%emt 0:00:01]} 4. g3 {[%emt 0:00:04]} g6 {[%emt 0:00:02]} 5. Bg2 {[%emt 0:00:01]} Bg7 {[%emt 0:00:01]} 6. O-O {[%emt 0:00:04]} Nge7 {[%emt 0:00:01][%cal Bg8e7,Be7d5,Bd5b4,Bb4d3][%mdl 32]} 7. b3 {[%emt 0:00:05] A37: Symmetrical English vs ...g6: 4 Bg2 Bg7 5 Nf3.} d5 $5 {[%emt 0:00:23][%mdl 4] A promising side line.} 8. cxd5 {[%emt 0:00:43]} Nxd5 {[%emt 0:00:01][%cal Oe5e4] [#]} 9. Qc2 $146 {[%emt 0:00:02]} (9. Bb2 $11) ({Predecessor:} 9. Ba3 Nxc3 10. dxc3 Qa5 11. Bb2 O-O 12. e4 Rd8 13. Qc2 f6 14. Nd2 Be6 15. Rfd1 {½-½ (32) Stanec,N (2562)-Grunberg,M (2403) Oberwart 2004}) 9... Bf5 {[%emt 0:00:17]} 10. e4 {[%emt 0:00:36]} Ndb4 {[%emt 0:00:02]} 11. Qb1 {[%emt 0:00:07]} Be6 {[%emt 0:00:23]} 12. a3 $1 {[%emt 0:00:06]} Nd3 {[%emt 0:00:26] With the idea ...0-0.} 13. Nd5 $1 {[%emt 0:00:02]} Bxd5 {[%emt 0:00:01]} 14. exd5 {[%emt 0:00:23]} ({Don't play} 14. Qxd3 Be6 15. Qe3 Nd4 16. Nxd4 exd4 $15) 14... Qxd5 {[%emt 0:00:02]} 15. Ne1 {[%emt 0:00:07]} e4 {[%emt 0:00:01]} 16. Nxd3 {[%emt 0:00:00]} Qxd3 {[%emt 0:00:01]} 17. Bxe4 {[%emt 0:00:01]} Qxb1 {[%emt 0:00:48]} 18. Rxb1 {[%emt 0:00:01]} O-O-O {[%emt 0:00:09]} 19. b4 {[%emt 0:00:06]} cxb4 {[%emt 0:00:34]} 20. axb4 {[%emt 0:00:03]} Rhe8 {[%emt 0:00:01]} 21. d3 {[%emt 0:00:19]} f5 {[%emt 0:00:02]} 22. Bg2 {[%emt 0:00:01]} Rxd3 {[%emt 0:00:03]} 23. Bf4 {[%emt 0:00:22]} a6 $2 {[%emt 0:00:07]} (23... Rc3 $11) 24. b5 $18 {[%emt 0:00:23]} axb5 {[%emt 0:00:01]} 25. Rxb5 {[%emt 0:00:01]} Bd4 {[%emt 0:00:47]} (25... Re7 $16) 26. Rfb1 $2 {[%emt 0:00:25]} (26. Bxc6 $18 {is the precise move to win.} bxc6 27. Rb8+ Kd7 28. Rb7+ Kd8 29. Rfb1) 26... Re7 $16 {[%emt 0:00:12]} 27. Bg5 {[%emt 0:00:06] This bishop pair is nice.} ({White should play} 27. h4 $16) 27... Rc7 $1 $14 {[%emt 0:00:18]} 28. Rd5 {[%emt 0:01:07]} Rd7 {[%emt 0:00:24]} 29. Rxd7 {[%emt 0:00:07]} Kxd7 {[%emt 0:00:01]} 30. Rxb7+ {[%emt 0:00:01]} Kd6 {[%emt 0:00:00]} 31. Rxh7 {[%emt 0:00:14]} Ne5 {[%emt 0:00:03] ...Rd1+ is the strong threat.} 32. Bf1 {[%emt 0:00:11]} (32. Bf4 $11 {keeps the balance.}) 32... Nf3+ $17 {[%emt 0:00:04]} 33. Kg2 {[%emt 0:00:04]} Nxg5 {[%emt 0:00:01] Black is more active.} 34. Rh6 {[%emt 0:00:03] [#]} Rc3 $1 {[%emt 0:00:06]} 35. Rxg6+ {[%emt 0:00:01]} Ne6 {[%emt 0:00:01] aiming for ...Ke7.} 36. f4 {[%emt 0:00:04]} (36. Be2 $142) 36... Rc2+ {[%emt 0:00:02]} (36... Bg7 $142 {Threatens to win with ...Ke7.} 37. Ba6 Rc5) 37. Kh3 {[%emt 0:00:01]} Bg1 {[%emt 0:00:04][%csl Gg1][%cal Rc2h2]} 38. Bg2 {[%emt 0:00:00]} Ke7 {[%emt 0:00:02] Prevents Rf6.} 39. Rh6 {[%emt 0:00:04]} Nd4 {[%emt 0:00:11] Strongly threatening ...Re2.} 40. Rh7+ {[%emt 0:00:02]} Kf6 {[%emt 0:00:02] And now ...Re2 would win.} 41. Rh6+ {[%emt 0:00:01]} Kg7 {[%emt 0:00:01]} 42. Rd6 {[%emt 0:00:03] [#]} (42. Ra6 $17 {was necessary.}) 42... Kf7 {[%emt 0:00:10]} (42... Re2 $1 $19 {Hoping for ...Nc2.} 43. Ra6 Nc2) 43. Rd5 {[%emt 0:00:03]} Ke6 {[%emt 0:00:03]} 44. Re5+ {[%emt 0:00:00]} Kf6 {[%emt 0:00:01][%cal Od4f3]} 45. Rd5 {[%emt 0:00:02]} ({White should try} 45. Re1 Bf2 46. Ra1) 45... Nf3 {[%emt 0:00:03]} 46. Rd1 $11 {[%emt 0:00:07] [#]} Nxh2 $1 {[%emt 0:00:11][%cal Oc2c7]} 47. Rxg1 {[%emt 0:00:01]} Ng4 {[%emt 0:00:01]} 48. Kh4 $2 {[%emt 0:00:03][%mdl 8192]} (48. Rb1 $11) 48... Rc7 {[%emt 0:00:02] Black used his chance.  Weighted Error Value: White=0.45/Black=0.28 (precise)} 0-1

[Event "Super United Croatia GCT Blitz 2022"]
[Site "Zagreb"]
[Date "2022.07.24"]
[Round "13"]
[White "Mamedyarov, Shakhriyar"]
[Black "Nepomniachtchi, Ian"]
[Result "0-1"]
[ECO "B14"]
[WhiteElo "2759"]
[BlackElo "2766"]
[Annotator "TA"]
[PlyCount "98"]
[EventDate "2022.07.20"]
[EventType "tourn"]
[EventCountry "CRO"]
[SourceTitle "playchess.com"]
[Source "ChessBase"]
[SourceQuality "1"]
[TimeControl "300+2"]

{[%evp 14,98,19,0,0,0,8,7,0,0,3,2,19,12,9,3,22,17,32,5,33,15,21,0,0,0,0,0,0,0,0,0,0,-58,0,-58,-56,-46,0,-62,-59,-47,-58,-59,54,19,18,21,22,8,20,33,31,14,14,23,82,41,43,6,72,0,0,0,40,0,0,0,0,0,0,-22,-23,-16,-8,-66,-93,-150,-103,-224,-210,-192,-159,-156,-137,-29998,-29999]} 1. d4 {[%emt 0:00:01]} Nf6 {[%emt 0:00:01]} 2. c4 {[%emt 0:00:01]} e6 {[%emt 0:00:01]} 3. Nf3 {[%emt 0:00:01]} d5 {[%emt 0:00:01]} 4. Nc3 {[%emt 0:00:02]} c5 {[%emt 0:00:01]} 5. e3 {[%emt 0:00:01]} Nc6 {[%emt 0:00:02]} 6. cxd5 {[%emt 0:00:04]} exd5 {[%emt 0:00:01]} 7. Bb5 {[%emt 0:00:01]} cxd4 {[%emt 0:00:02]} 8. exd4 {[%emt 0:00:01]} Bd6 {[%emt 0:00:02] B14: Caro-Kann: Panov-Botvinnik Attack with 5...e6 and 5...g6.} 9. O-O {[%emt 0:00:02]} O-O {[%emt 0:00:01]} 10. Bg5 {[%emt 0:00:01]} Bg4 {[%emt 0:00:02] The position is equal.} 11. Be2 {[%emt 0:00:01]} Re8 {[%emt 0:00:02] 11...h6 is the modern continuation.} 12. h3 {[%emt 0:00:05]} Be6 {[%emt 0:00:09] [#]} 13. Bb5 $146 {[%emt 0:00:32][%cal Of3e5]} ({Predecessor:} 13. Bd3 h6 14. Bh4 a6 15. Qd2 Rc8 16. Rad1 Be7 17. Rfe1 b5 18. a3 Na5 19. Bb1 {1-0 (70) Stanec,N (2465)-Dragnev,V (2499) Vienna 2018}) 13... h6 {[%emt 0:00:03]} 14. Bh4 {[%emt 0:00:02][%cal Of3e5]} g5 {[%emt 0:00:23]} 15. Bg3 {[%emt 0:00:06]} Ne4 {[%emt 0:00:02]} 16. Bxd6 {[%emt 0:00:41]} Qxd6 {[%emt 0:00:34]} 17. Ne5 {[%emt 0:00:03]} f6 {[%emt 0:00:18]} 18. Qh5 {[%emt 0:00:36]} fxe5 {[%emt 0:00:07]} 19. Qg6+ {[%emt 0:00:17]} Kf8 {[%emt 0:00:05] aiming for ...Bg8.} 20. Nxe4 {[%emt 0:00:16]} dxe4 {[%emt 0:00:01]} 21. Qf6+ {[%emt 0:00:44]} Kg8 {[%emt 0:00:01]} 22. Qg6+ {[%emt 0:00:02]} Kf8 {[%emt 0:00:01] Strongly threatening ...Ke7.} 23. Qxh6+ {[%emt 0:00:08]} (23. Bxc6 $11 bxc6 24. Qf6+ Kg8 25. Qg6+ Kf8 26. Qf6+ Kg8 27. Qg6+ Kf8) 23... Kf7 {[%emt 0:00:04]} (23... Ke7 $1 $15 24. Qxg5+ Kf7) 24. Qh5+ {[%emt 0:00:10]} ({White should play} 24. d5 $11 Qxd5 25. Qh7+ Kf8 26. Qh6+ Ke7 27. Bxc6 Qxc6 28. Rfc1) 24... Kf6 $15 {[%emt 0:00:11]} 25. Qh6+ {[%emt 0:00:10]} Kf7 {[%emt 0:00:05]} (25... Ke7 $1 $15 {is more appropriate.} 26. Qxg5+ Kd7 27. dxe5 Qb4 28. Bxc6+ bxc6) 26. Qh5+ {[%emt 0:00:04]} (26. Qh7+ $11 Kf6 27. Qh6+ Kf7) 26... Ke7 $1 {[%emt 0:00:28]} 27. Qxg5+ {[%emt 0:00:01]} Kd7 {[%emt 0:00:01]} 28. dxe5 {[%emt 0:00:23]} Qc5 {[%emt 0:00:01]} (28... Qb4 $15 29. Rfd1+ Kc7 30. Bxc6 bxc6) 29. Rfd1+ {[%emt 0:00:07]} (29. Bxc6+ $5 bxc6 30. Rac1 $14) 29... Kc7 {[%emt 0:00:01] The board is on fire.} 30. Bxc6 {[%emt 0:00:03]} bxc6 {[%emt 0:00:01]} 31. Rac1 {[%emt 0:00:02]} Qe7 {[%emt 0:00:18]} 32. Qe3 {[%emt 0:00:14] Hoping for Rd6.} Red8 {[%emt 0:00:00] Prevents Rd6.} 33. Rxd8 {[%emt 0:00:07]} Qxd8 {[%emt 0:00:01]} 34. Qxe4 Bd5 (34... Qd7 $1 $11 {remains equal.}) 35. Qh7+ {[%emt 0:00:12]} Kb6 {[%emt 0:00:03] ...Qg5 is the strong threat.} 36. Qh6 {[%emt 0:00:17] Against Qg5} Rb8 {[%emt 0:00:11]} (36... Qe7 $11) 37. b3 {[%emt 0:00:02]} ({Better is} 37. Qe3+ $16 Kb7 38. f4) 37... Kb7 $40 {[%emt 0:00:09][%mdl 128] Black is up to no good.} 38. e6 {[%emt 0:00:04]} Qg8 {[%emt 0:00:04][%csl Gd5,LRe6,LRg2][%cal Rg8g2] Against Qg7+} 39. g4 {[%emt 0:00:07]} Bxe6 {[%emt 0:00:03]} 40. Re1 {[%emt 0:00:00]} Re8 {[%emt 0:00:18]} 41. f4 {[%emt 0:00:02]} Bd5 {[%emt 0:00:08]} 42. Kf2 {[%emt 0:00:07]} Rxe1 {[%emt 0:00:03]} 43. Kxe1 {[%emt 0:00:01]} Qe8+ {[%emt 0:00:01]} 44. Kf2 {[%emt 0:00:04]} (44. Kd2 $1 $11) 44... Qe4 $15 {[%emt 0:00:01] White must now prevent ...Qf3+. Black is more active.} 45. Qg7+ {[%emt 0:00:06] [#]} ({White should try} 45. f5) 45... Ka6 $1 $17 {[%emt 0:00:01]} 46. Qf8 {[%emt 0:00:07]} (46. Qe5 $17 {was called for.} Qf3+ 47. Ke1 Qxh3 48. Qe2+ Kb6 49. Kd2) 46... Qf3+ $19 {[%emt 0:00:05]} 47. Ke1 {[%emt 0:00:01]} Qe3+ {[%emt 0:00:04]} ({Stronger than} 47... Qxh3 48. Qa3+ Kb5 49. Qa4+ Kc5 50. Qxa7+ Kb4 51. Qd4+ Ka3 52. Qa7+ Kb2 53. Qf2+ Kc1 54. Qd2+ Kb1 55. g5 $15) 48. Kd1 {[%emt 0:00:01]} Qd3+ {[%emt 0:00:11]} ({Not} 48... Qxh3 49. Qc8+ Kb6 50. Qb8+ Kc5 51. Qxa7+ Kd6 52. Qb8+ Kd7 53. Qb7+ Kd6 54. Qb8+ Kc5 55. Qa7+ Kd6 56. Qb8+ $11) 49. Kc1 $2 {[%emt 0:00:01][%mdl 8192] [#]} (49. Ke1 $17) 49... Qc3+ {[%emt 0:00:02] Weighted Error Value: White=0.33/Black=0.15 (very precise)} 0-1

[Event "Super United Croatia GCT Blitz 2022"]
[Site "Zagreb"]
[Date "2022.07.24"]
[Round "13"]
[White "Topalov, Veselin"]
[Black "Saric, Ivan"]
[Result "0-1"]
[ECO "A21"]
[WhiteElo "2728"]
[BlackElo "2680"]
[Annotator "TA"]
[PlyCount "100"]
[EventDate "2022.07.20"]
[EventType "tourn"]
[EventCountry "CRO"]
[SourceTitle "playchess.com"]
[Source "ChessBase"]
[SourceQuality "1"]
[TimeControl "300+2"]

{[%evp 11,100,13,49,45,60,45,50,41,53,39,35,41,51,46,66,50,55,33,45,33,81,92,107,42,113,59,61,0,0,0,0,0,0,0,0,0,16,14,58,-52,-29,-31,-45,-18,-53,-104,-100,-102,0,-79,-20,-53,-45,-90,-94,-111,-56,-39,-66,-77,-75,-115,-107,-107,-94,-96,-100,-320,-313,-436,-410,-459,-449,-437,-436,-405,-228,-223,-215,-802,-867,-968,-935,-1783,-1785,-2447,-2366,-5222,-5197,-29980,-29981]} 1. c4 {[%emt 0:00:02]} g6 {[%emt 0:00:00]} 2. g3 {[%emt 0:00:02]} Bg7 {[%emt 0:00:01]} 3. Bg2 {[%emt 0:00:01]} e5 {[%emt 0:00:06]} 4. Nc3 {[%emt 0:00:01]} d6 {[%emt 0:00:00]} 5. d3 {[%emt 0:00:03][%cal Bd2d3,Bd3d4,Bd4d5][%mdl 32]} f5 {[%emt 0:00:18]} 6. e4 {[%emt 0:00:05]} Nf6 {[%emt 0:00:04]} 7. exf5 {[%emt 0:00:04] A21: English Opening: 1...e5 2 Nc3.} gxf5 {[%emt 0:00:02]} 8. Nge2 {[%emt 0:00:01]} O-O {[%emt 0:00:03]} 9. O-O {[%emt 0:00:02] White is slightly better.} c6 {[%emt 0:00:21]} 10. d4 {[%emt 0:00:02]} Na6 {[%emt 0:00:16]} 11. Bg5 {[%emt 0:00:19]} h6 {[%emt 0:00:12]} 12. Bh4 {[%emt 0:00:01]} Qe8 {[%emt 0:00:05] [#]} 13. d5 $146 {[%emt 0:00:02]} ({Predecessor:} 13. Bxf6 Bxf6 14. Qd2 Bg7 15. Rad1 Qf7 16. d5 c5 17. f4 e4 18. a3 Bd7 19. Rb1 {½-½ (42) Lautner,J (1948)-Kanewski,J (2145) Schwarzenfeld 2005}) 13... c5 {[%emt 0:00:06]} 14. Nb5 {[%emt 0:00:01]} Qe7 {[%emt 0:00:12]} 15. Re1 {[%emt 0:00:04][%cal Oe2f4] Threatens to win with Nf4!} Nc7 {[%emt 0:00:08] [#]} (15... Qd7 $14) 16. Nf4 $1 $16 {[%emt 0:00:02]} Nxb5 {[%emt 0:00:11]} 17. cxb5 {[%emt 0:00:05]} (17. Ng6 $16 Qf7 18. Nxf8) 17... Rf7 {[%emt 0:00:27]} (17... Re8 $14) 18. a4 {[%emt 0:00:06]} (18. Ne6 $16) 18... a6 $14 {[%emt 0:00:08]} 19. Ra3 {[%emt 0:00:08]} ({Better is} 19. Ne6 $14) 19... axb5 $11 {[%emt 0:00:07]} 20. axb5 {[%emt 0:00:01]} Rxa3 {[%emt 0:00:01]} 21. bxa3 {[%emt 0:00:01]} Qd7 {[%emt 0:00:05]} 22. Ne6 {[%emt 0:00:04]} Qxb5 {[%emt 0:00:04]} 23. Bh3 {[%emt 0:00:14]} Nh7 {[%emt 0:00:24]} 24. Qh5 {[%emt 0:01:08]} Qd3 {[%emt 0:00:29]} 25. Qg6 {[%emt 0:00:05]} (25. Nd8 $1 $14 Rc7 26. Qe8+ Bf8 27. Ne6 Bxe6 28. dxe6 (28. Qxe6+ Rf7 $11)) 25... Qxd5 $15 {[%emt 0:00:57]} (25... Nf8 26. Nxf8 Qxd5 27. Nh7 $11 (27. Bg2 e4 $15)) 26. Nxg7 {[%emt 0:00:02] And now Ne6+ would win.} ({Avoid the trap} 26. Bxf5 $2 Nf8 27. Qxg7+ Rxg7 $19) 26... Nf8 {[%emt 0:00:01]} 27. Qxh6 {[%emt 0:00:05]} Rxg7 {[%emt 0:00:03]} 28. Qf6 {[%emt 0:00:46]} ({But not} 28. Bf6 $2 Rg6 29. Qh8+ Kf7 30. Bxe5 dxe5 $19) (28. Bg2 $15 Qe6 29. Qd2 (29. Bf6 $2 Rg6 $19)) 28... Qe6 {[%emt 0:00:09]} 29. Qd8 {[%emt 0:00:02]} Qd7 {[%emt 0:00:01]} (29... Bd7 $1 $17 30. Bg2 Bc6 31. Bxc6 bxc6) 30. Qb6 {[%emt 0:00:21]} (30. Rd1 $11) 30... Ng6 {[%emt 0:00:04]} (30... Qc7 $17 31. Bd8 Qxb6 32. Bxb6 Be6) 31. Bg5 {[%emt 0:00:03]} Ne7 {[%emt 0:00:12]} 32. Qb3+ {[%emt 0:00:17]} Qe6 {[%emt 0:00:07]} 33. Qe3 {[%emt 0:00:20]} Qg6 {[%emt 0:00:06]} (33... Nc6 $17 {White must now prevent ...Nd4.} 34. Bg2 Nd4) 34. Bxe7 {[%emt 0:00:08]} Rxe7 {[%emt 0:00:01]} 35. Bg2 {[%emt 0:00:02]} Be6 $36 {[%emt 0:00:16][%mdl 2048] Keeping White busy.} 36. Rd1 {[%emt 0:00:05] [#]} Rd7 {[%emt 0:00:00]} 37. a4 {[%emt 0:00:17]} Qf6 {[%emt 0:00:05]} 38. Qc3 {[%emt 0:00:05]} Kg7 {[%emt 0:00:02]} 39. Rb1 $2 {[%emt 0:00:16] This move loses the game for White.} (39. Bd5 $17 {is a better defense.}) 39... e4 $19 {[%emt 0:00:06]} 40. Qc1 {[%emt 0:00:00]} c4 {[%emt 0:00:03][%cal Bc5c4,Bc4c3,Bc3c2][%mdl 32]} 41. Rb6 {[%emt 0:00:27]} d5 {[%emt 0:00:00][%cal Bd6d5,Bd5d4,Bd4d3][%mdl 32]} 42. Bf1 {[%emt 0:00:06]} c3 {[%emt 0:00:04]} 43. a5 {[%emt 0:00:01]} Rc7 {[%emt 0:00:06]} (43... d4 $142 {Strongly threatening ...d3.} 44. Bb5 Rc7) 44. Qf4 {[%emt 0:00:01] [#]} Re7 {[%emt 0:00:03] Active counter play!} 45. Qd6 $2 {[%emt 0:00:03]} (45. Kg2) 45... d4 {[%emt 0:00:04] Hoping for ...c2.} 46. Qc5 {[%emt 0:00:12]} d3 {[%emt 0:00:02] aiming for ...c2.} 47. h4 {[%emt 0:00:02]} c2 {[%emt 0:00:02]} 48. Rd6 {[%emt 0:00:02]} Rd7 {[%emt 0:00:06]} 49. Rxd7+ {[%emt 0:00:03]} Bxd7 {[%emt 0:00:01]} 50. Qc7 {[%emt 0:00:01]} Qc6 {[%emt 0:00:04] Weighted Error Value: White=0.78/Black=0.18 (very precise)} 0-1

[Event "Super United Croatia GCT Blitz 2022"]
[Site "Zagreb"]
[Date "2022.07.24"]
[Round "13"]
[White "Van Foreest, Jorden"]
[Black "So, Wesley"]
[Result "1-0"]
[ECO "D27"]
[WhiteElo "2678"]
[BlackElo "2773"]
[Annotator "TA"]
[PlyCount "91"]
[EventDate "2022.07.20"]
[EventType "tourn"]
[EventCountry "CRO"]
[SourceTitle "playchess.com"]
[Source "ChessBase"]
[SourceQuality "1"]
[TimeControl "300+2"]

{[%evp 19,91,20,23,20,21,10,15,16,16,12,21,14,11,8,11,6,27,12,18,9,12,8,14,6,8,4,9,1,3,0,0,2,12,8,5,10,15,23,16,16,19,14,16,14,18,16,19,10,13,10,13,10,10,10,10,0,0,0,10,10,10,10,10,0,10,0,10,0,10,0,10,0,10,0]} 1. d4 {[%emt 0:00:02] Fernandez,D} d5 {[%emt 0:00:02]} 2. c4 {[%emt 0:00:01]} dxc4 {[%emt 0:00:01]} 3. Nf3 {[%emt 0:00:05]} Nf6 {[%emt 0:00:01]} 4. e3 {[%emt 0:00:01]} e6 {[%emt 0:00:01]} 5. Bxc4 {[%emt 0:00:02]} a6 {[%emt 0:00:02]} 6. O-O {[%emt 0:00:02]} c5 {[%emt 0:00:06]} 7. Re1 {[%emt 0:00:23]} Nc6 {[%emt 0:00:06]} 8. Nc3 {[%emt 0:00:12]} Be7 {[%emt 0:00:02]} 9. dxc5 {[%emt 0:00:02]} Qxd1 {[%emt 0:00:01]} 10. Rxd1 {[%emt 0:00:01]} Bxc5 {[%emt 0:00:02]} 11. Be2 {[%emt 0:00:10] 11.Bd2 is becoming the main line. D27: Queen's Gambit Accepted: Classical main line: 7 e4!? and 7 a4.} O-O {[%emt 0:00:07]} 12. Bd2 {[%emt 0:00:01]} Bd7 {[%emt 0:00:08]} 13. Rac1 {[%emt 0:00:05]} Ba7 {[%emt 0:00:04]} 14. Na4 {[%emt 0:00:22]} Rfd8 {[%emt 0:00:07]} 15. Be1 {[%emt 0:00:09]} Be8 {[%emt 0:00:18]} 16. Rxd8 {[%emt 0:00:02]} Nxd8 {[%emt 0:00:07]} 17. b3 {[%emt 0:00:16] [#]} Ne4 $146 {[%emt 0:00:37]} ({Predecessor:} 17... Nd5 18. Kf1 Nc6 19. Nc5 Rb8 20. a3 Nce7 21. Ne5 Rc8 22. Ned3 Rc7 23. b4 Bxc5 24. Rxc5 Bb5 25. Rxc7 {½-½ (24) Vidit,S (2718)-Van Foreest,J (2629) Wijk aan Zee 2018 CBM 183 [Fernandez,D]}) 18. Bd3 {[%emt 0:00:26]} Bxa4 {[%emt 0:00:07]} 19. Bxe4 {[%emt 0:00:28]} Bc6 {[%emt 0:00:02]} 20. Nd2 {[%emt 0:00:05]} f5 {[%emt 0:00:14]} 21. Bf3 {[%emt 0:00:06]} Rc8 {[%emt 0:00:06]} 22. Be2 {[%emt 0:00:22]} Nf7 {[%emt 0:00:19]} 23. Nf3 {[%emt 0:00:02]} Kf8 {[%emt 0:00:23]} 24. Nd4 {[%emt 0:00:09]} Bxd4 {[%emt 0:00:02]} 25. exd4 {[%emt 0:00:01]} Ke7 {[%emt 0:00:08]} 26. f3 {[%emt 0:00:02]} Kd7 {[%emt 0:00:06]} 27. Kf2 {[%emt 0:00:02]} Bb5 {[%emt 0:00:28]} 28. Rxc8 {[%emt 0:00:04]} Kxc8 $11 {[%emt 0:00:00][%mdl 4096] Endgame KBB-KBN} 29. Bd1 {[%emt 0:00:04] The position is equal.} Kd7 {[%emt 0:00:10]} 30. Bc2 {[%emt 0:00:03][%cal Od4d5]} Bc6 {[%emt 0:00:11]} 31. h4 {[%emt 0:00:06]} g6 {[%emt 0:00:04]} 32. Ke3 {[%emt 0:00:02]} h6 {[%emt 0:00:12]} 33. Bb4 {[%emt 0:00:08]} g5 {[%emt 0:00:03]} 34. h5 {[%emt 0:00:33]} Nd6 {[%emt 0:00:02]} 35. g3 {[%emt 0:00:02]} b6 {[%emt 0:00:12]} 36. a4 {[%emt 0:00:17]} a5 {[%emt 0:00:03]} 37. Bc3 {[%emt 0:00:01]} Bd5 {[%emt 0:00:03]} 38. b4 {[%emt 0:00:05]} axb4 {[%emt 0:00:33]} 39. Bxb4 {[%emt 0:00:01]} Bc4 {[%emt 0:00:05]} 40. Bd1 {[%emt 0:00:13]} Bd5 {[%emt 0:00:02]} 41. Bc2 {[%emt 0:00:08]} Bc4 {[%emt 0:00:04]} 42. Bd1 {[%emt 0:00:08]} Kc6 {[%emt 0:00:09]} 43. Bc2 {[%emt 0:00:03]} Kd5 {[%emt 0:00:07]} 44. Bd1 {[%emt 0:00:07]} Kc6 {[%emt 0:00:10]} 45. Bc2 {[%emt 0:00:01]} Kd7 {[%emt 0:00:01]} 46. Bd1 {[%emt 0:00:01][%mdl 32768] Not much happened in this game.  Weighted Error Value: White=0.04 (flawless) /Black=0.03 (flawless) . Loss on time!?} 1-0

[Event "Super United Croatia GCT Blitz 2022"]
[Site "Zagreb"]
[Date "2022.07.24"]
[Round "14"]
[White "So, Wesley"]
[Black "Topalov, Veselin"]
[Result "1-0"]
[ECO "B51"]
[WhiteElo "2773"]
[BlackElo "2728"]
[Annotator "TA"]
[PlyCount "71"]
[EventDate "2022.07.20"]
[EventType "tourn"]
[EventCountry "CRO"]
[SourceTitle "playchess.com"]
[Source "ChessBase"]
[SourceQuality "1"]
[TimeControl "300+2"]

{[%evp 9,71,24,13,8,14,10,17,12,12,4,27,27,15,4,7,10,31,0,45,32,43,0,41,36,65,57,52,51,54,33,29,24,38,34,33,24,50,6,7,0,0,0,0,0,0,0,0,-21,-20,-36,0,0,0,0,18,16,77,97,104,27,20,-38,706,698]} 1. e4 {[%emt 0:00:01]} c5 {[%emt 0:00:02]} 2. Nf3 {[%emt 0:00:01]} d6 {[%emt 0:00:02]} 3. Bb5+ {[%emt 0:00:04]} Nd7 {[%emt 0:00:02]} (3... Bd7 4. Bxd7+ Qxd7 5. c4 Nc6 6. d4 cxd4 7. Nxd4 g6 8. Nc3 Bg7 9. Be3 Nh6 10. h3 f5 11. Bxh6 Bxd4 12. O-O Bxc3 13. bxc3 fxe4 14. Qe2 O-O-O 15. Rab1 Ne5 16. Bg7 Qc6 17. Bxh8 Rxh8 {1-0 (27) So,W (2776)-Topalov,V (2730) Stavanger 2022}) 4. a4 {[%emt 0:00:02][%cal Ba2a4,Ba4a5][%mdl 32]} Ngf6 {[%emt 0:00:05]} 5. Nc3 {[%emt 0:00:01]} a6 {[%emt 0:00:00]} 6. Be2 {[%emt 0:00:02] B51: Sicilian: Moscow Variation (3 Bb5+) without 3...Bd7.} e6 {[%emt 0:00:02]} 7. a5 {[%emt 0:00:01]} Be7 {[%emt 0:00:05]} 8. O-O {[%emt 0:00:02] The position is equal.} O-O {[%emt 0:00:01]} 9. Re1 {[%emt 0:00:07]} Qc7 {[%emt 0:00:08] [#]} 10. d4 $146 {[%emt 0:00:20]} ({Predecessor:} 10. Bf1 Ne5 11. Nxe5 dxe5 12. d3 Bd7 13. Bd2 Rad8 14. Na4 Bc6 15. b3 Nd7 16. Qe2 {1-0 (52) So,W (2775)-Makarian,R (2534) Chess.com INT 2022}) 10... cxd4 {[%emt 0:00:02]} 11. Nxd4 {[%emt 0:00:01]} Rb8 {[%emt 0:00:11]} 12. Nb3 {[%emt 0:00:22]} Rd8 {[%emt 0:00:15]} 13. Bd3 {[%emt 0:00:29]} (13. Qd3 $5 {[%cal Rd3g3]}) 13... Ne5 {[%emt 0:00:17]} 14. Be3 {[%emt 0:00:05]} Nfd7 {[%emt 0:00:02] Against Bb6} 15. Na4 {[%emt 0:00:13]} Re8 {[%emt 0:00:06]} (15... Nc5 $5 {[%cal Rc8d7]}) 16. Qe2 {[%emt 0:00:16]} Bf6 {[%emt 0:00:31]} 17. Ba7 {[%emt 0:00:08]} Ra8 {[%emt 0:00:03]} 18. Bd4 {[%emt 0:00:02]} Nc6 {[%emt 0:00:14]} 19. Bxf6 {[%emt 0:00:02]} Nxf6 {[%emt 0:00:01]} 20. Qd2 {[%emt 0:00:04]} Bd7 {[%emt 0:00:08]} 21. Nb6 {[%emt 0:00:11]} Rad8 {[%emt 0:00:01]} 22. Rad1 {[%emt 0:00:16]} Ne5 {[%emt 0:00:14]} 23. f4 {[%emt 0:00:11]} Nxd3 {[%emt 0:00:05]} 24. cxd3 {[%emt 0:00:02]} Bc6 {[%emt 0:00:06]} 25. Nd4 {[%emt 0:00:11][%cal Bb3d4,Bd4e2,Be2c3,Bc3d5][%mdl 32]} Nd7 {[%emt 0:00:09]} 26. Nxd7 {[%emt 0:00:05]} Bxd7 {[%emt 0:00:03]} 27. Rc1 {[%emt 0:00:12] Prevents Qc5.} Qb8 {[%emt 0:00:01]} 28. Qb4 {[%emt 0:00:03]} e5 {[%emt 0:00:01] [#] White must now prevent ...Qa7.} 29. Ne2 {[%emt 0:00:11]} Bg4 {[%emt 0:00:14]} 30. Nc3 {[%emt 0:00:09] Hoping for f5.} exf4 {[%emt 0:00:18]} 31. Nd5 {[%emt 0:00:01]} f3 {[%emt 0:00:05]} 32. gxf3 {[%emt 0:00:21]} Bxf3 {[%emt 0:00:08] [#]} (32... Be6 $11) 33. Rc7 $1 $16 {[%emt 0:00:02] Active counter play!} Bg4 {[%emt 0:01:02]} 34. Rec1 {[%emt 0:00:53]} (34. Rxb7 $16 Qc8 35. Ne7+ Rxe7 36. Rxe7) 34... Rd7 $11 {[%emt 0:00:17]} 35. Qc3 {[%emt 0:00:27]} ({White should try} 35. e5 $11 Rxc7 36. Rxc7) 35... Qd8 $2 {[%emt 0:00:09][%mdl 8192]} (35... Be6 $15) 36. Rc8 {[%emt 0:00:06][%mdl 64] Skewer.  Weighted Error Value: White=0.15 (very precise) /Black=0.14 (very precise)} 1-0